[Event "SixDays Budapest IM-A January 2024"]
[Site "Budapest"]
[Date "2024.01.29"]
[Round "5.1"]
[White "Orso, Miklos"]
[Black "Kuru, Atilla"]
[Result "0-1"]
[ECO "D11"]
[WhiteElo "2172"]
[BlackElo "2220"]
[Annotator "TA"]
[PlyCount "76"]
[EventDate "2024.01.26"]
[EventType "tourn"]
[EventCountry "HUN"]
[SourceTitle "playchess.com"]
[Source "ChessBase"]
[SourceQuality "1"]
[TimeControl "5400+30"]

{[%evp 17,76,-16,0,-15,13,0,0,0,25,10,22,20,52,39,83,85,114,52,100,56,52,34,45,34,72,40,108,49,89,50,56,53,132,156,139,144,196,188,240,225,255,254,353,358,355,83,79,78,77,22,23,25,25,9,20,0,0,-266,-255,-29992,-29993]} 1. d4 {[%emt 0:00:03]} d5 {[%emt 0:15:18]} 2. c4 {[%emt 0:00:27]} c6 {[%emt 0:00:04]} 3. Nf3 {[%emt 0:00:25]} e6 {[%emt 0:00:03]} 4. cxd5 {[%emt 0:00:36]} exd5 {[%emt 0:00:40]} 5. Nc3 {[%emt 0:00:08]} Nf6 {[%emt 0:00:18]} 6. Bg5 {[%emt 0:00:21]} Be7 {[%emt 0:00:19]} 7. e3 {[%emt 0:00:18]} h6 {[%emt 0:01:16]} 8. Bxf6 {[%emt 0:00:33]} Bxf6 {[%emt 0:00:07]} 9. b4 {[%emt 0:00:25]} O-O {[%emt 0:02:03]} 10. Bd3 {[%emt 0:00:55]} Bg4 {[%emt 0:00:39]} 11. h3 {[%emt 0:06:46]} Bxf3 {[%emt 0:09:08]} 12. Qxf3 {[%emt 0:00:22] The position is equal.} Qd6 {[%emt 0:07:19]} 13. Rb1 {[%emt 0:04:44]} Nd7 {[%emt 0:06:15]} 14. O-O $40 {[%emt 0:04:43][%mdl 128] White is up to no good.} a5 {[%emt 0:02:00]} 15. b5 {[%emt 0:01:00]} a4 {[%emt 0:00:24]} 16. Rfc1 {[%emt 0:02:22]} Rfc8 {[%emt 0:04:30]} 17. Qd1 {[%emt 0:09:51]} (17. Bf5 $16) 17... a3 {[%emt 0:07:58]} (17... g6 $14) 18. bxc6 {[%emt 0:02:29]} bxc6 {[%emt 0:00:27]} 19. Bf5 {[%emt 0:07:13] Na4 would now be deadly.} Rcb8 {[%emt 0:04:17]} 20. Na4 {[%emt 0:09:14] Black must now prevent Bxd7.} Nf8 {[%emt 0:09:29]} 21. Qc2 {[%emt 0:14:58] Strongly threatening Rxb8.} Rb4 {[%emt 0:05:26] [#]} (21... Rxb1 $14 22. Rxb1 g6) 22. Nc5 {[%emt 0:00:25]} (22. Qxc6 $2 Qxc6 23. Rxc6 Rxb1+ (23... Rbxa4 $2 24. Rb5 $19) (23... Raxa4 $2 24. Rxb4 Rxb4 25. Ra6 $19) 24. Bxb1 Rxa4 $19) ({White should play} 22. Rxb4 $1 $16 Qxb4 23. Nc5 (23. Qxc6 $2 Rxa4 24. Qxd5 Ra7 $19)) 22... Rc4 {[%emt 0:01:06]} 23. Qe2 {[%emt 0:03:34]} Rxc1+ {[%emt 0:00:16]} 24. Rxc1 {[%emt 0:00:01]} Ne6 {[%emt 0:00:23]} ({Black should try} 24... Be7 $14) 25. Bxe6 $16 {[%emt 0:03:26]} fxe6 {[%emt 0:00:05]} 26. f4 {[%emt 0:00:12]} Rb8 {[%emt 0:03:09]} (26... Qe7 $16 27. Qd3 Qf7) 27. Qd3 {[%emt 0:01:35]} Kh8 {[%emt 0:00:59]} (27... Qd8 $142 28. Qxa3 (28. Nxe6 Qc8 $18) 28... Be7) 28. Rc3 {[%emt 0:02:52]} Qe7 {[%emt 0:01:42]} 29. Rxa3 {[%emt 0:02:09]} e5 {[%emt 0:00:10]} 30. fxe5 {[%emt 0:00:47]} Bxe5 {[%emt 0:00:09][%cal Bf6e5,Be5d6,Bd6c5][%mdl 32]} 31. Rb3 $2 {[%emt 0:03:11]} (31. Na6 $1 $18 {[%cal Ra6b8] and the rest is easy.} Bd6 32. Nxb8 Bxa3 33. Nxc6) 31... Rxb3 {[%emt 0:01:09]} 32. Nxb3 {[%emt 0:01:19][%mdl 4096] Endgame. KQB-KQN} Bd6 {[%emt 0:01:03]} 33. Nd2 {[%emt 0:03:00]} ({Better is} 33. a4 $16) 33... c5 $1 $11 {[%emt 0:01:57]} 34. dxc5 {[%emt 0:00:02]} Bxc5 {[%emt 0:00:03]} 35. Nf1 {[%emt 0:00:18][%cal Oa2a4]} (35. Qxd5 Qxe3+ 36. Kh2 Qg1+ 37. Kg3 Qe1+ 38. Kg4 Qe2+ 39. Nf3 Qxg2+ 40. Kf4 Qf2 $11) 35... Qd7 {[%emt 0:00:30]} 36. a4 {[%emt 0:00:28]} d4 {[%emt 0:00:21][%cal Od4e3] Hoping for ...dxe3!} 37. a5 $2 {[%emt 0:01:36][%mdl 8192]} (37. Qc4 $11 dxe3 38. Qxc5) 37... dxe3 $19 {[%emt 0:00:27]} 38. Qe2 {[%emt 0:03:29] [#]} (38. Qxd7 $19 e2+ 39. Kh2 exf1=Q (39... exf1=R $2 {perishes.} 40. Qc8+ Bf8 41. a6 $18) 40. Qc8+ Qf8 41. Qxf8+ Bxf8 42. Kg3) 38... Qd1 $3 {[%emt 0:00:07][%mdl 512] Never resign too early!   Weighted Error Value: White=0.62/Black=0.29 (precise) .  Loses game:     	White=1     	---        Missed win:     	White=1     	---        Mistake:       	White=4     	Black=5      Inaccurate:     	White=3     	Black=7      OK:         	White=8     	Black=5      Best:        	White=1     	Black=1      Strong:       	---       	Black=1      Brilliant:      	---       	Black=1} 0-1

[Event "SixDays Budapest IM-A January 2024"]
[Site "Budapest"]
[Date "2024.01.29"]
[Round "5.2"]
[White "Balla, Tamas-Kristof"]
[Black "Cieslak, Patryk"]
[Result "1/2-1/2"]
[ECO "A05"]
[WhiteElo "2283"]
[BlackElo "2284"]
[Annotator "TA"]
[PlyCount "32"]
[EventDate "2024.01.26"]
[EventType "tourn"]
[EventCountry "HUN"]
[SourceTitle "playchess.com"]
[Source "ChessBase"]
[SourceQuality "1"]
[TimeControl "5400+30"]

{[%evp 18,32,5,12,19,16,19,0,0,0,0,-21,0,-8,0,-25,0]} 1. Nf3 {[%emt 0:03:05]} Nf6 {[%emt 0:00:14]} 2. b3 {[%emt 0:00:24]} d5 {[%emt 0:00:18]} 3. Bb2 {[%emt 0:00:05]} e6 {[%emt 0:00:04]} 4. e3 {[%emt 0:00:05]} Bd6 {[%emt 0:00:10]} 5. c4 {[%emt 0:00:07]} O-O {[%emt 0:00:06]} 6. d4 {[%emt 0:00:34]} b6 {[%emt 0:00:32]} 7. Bd3 {[%emt 0:00:07]} Bb7 {[%emt 0:00:07]} 8. O-O {[%emt 0:00:22]} Nbd7 {[%emt 0:01:31]} 9. Nbd2 {[%emt 0:02:19]} c5 {[%emt 0:09:37]} 10. Qe2 {[%emt 0:01:19]} Qc7 {[%emt 0:02:31]} 11. cxd5 {[%emt 0:04:22]} exd5 {[%emt 0:00:38]} 12. dxc5 {[%emt 0:00:06]} bxc5 {[%emt 0:00:53] The position is equal.} 13. Ba6 {[%emt 0:00:45]} Bc6 {[%emt 0:09:18]} 14. Bb5 {[%emt 0:03:36]} Bb7 {[%emt 0:02:03]} 15. Ba6 {[%emt 0:01:18]} Bc6 {[%emt 0:05:26]} 16. Bb5 {[%emt 0:01:15]} Bb7 {[%emt 0:01:10] A rather calm draw.   Weighted Error Value: White=0.06 (flawless) /Black=0.09 (flawless) .  OK:         	White=3     	---} 1/2-1/2

[Event "SixDays Budapest IM-A January 2024"]
[Site "Budapest"]
[Date "2024.01.29"]
[Round "5.3"]
[White "Vetokhina, Sofia"]
[Black "Urhegyi, Marton"]
[Result "0-1"]
[ECO "D37"]
[WhiteElo "2020"]
[BlackElo "2255"]
[Annotator "TA"]
[PlyCount "126"]
[EventDate "2024.01.26"]
[EventType "tourn"]
[EventCountry "HUN"]
[SourceTitle "playchess.com"]
[Source "ChessBase"]
[SourceQuality "1"]
[TimeControl "5400+30"]

{[%evp 13,126,0,0,-7,0,0,0,0,0,0,0,0,0,-6,0,0,0,0,0,0,0,0,7,-19,-10,-39,-26,-21,-14,-69,-45,-48,-56,-52,-54,-58,-23,-39,-37,-43,39,42,41,-57,-50,-60,-41,-47,-47,-53,-50,-84,-75,-81,-55,-55,-62,-61,-45,-58,-58,-58,-50,-42,-42,-66,-66,-65,-69,-80,-28,-51,-41,-42,-35,-80,-81,-127,-127,-125,-94,-103,-103,-76,-70,-81,-86,-74,-76,-78,-81,-75,-75,-89,-76,-81,-38,-270,-266,-489,-525,-967,-954,-933,-529,-29980,-29981,-29981,-29982,-29988,-29989,-29989,-29990,-29992,-29993]} 1. d4 {[%emt 0:00:03]} d5 {[%emt 0:00:13]} 2. c4 {[%emt 0:00:07]} e6 {[%emt 0:00:07]} 3. Nc3 {[%emt 0:04:39]} Nf6 {[%emt 0:00:25]} 4. Nf3 {[%emt 0:01:54]} Be7 {[%emt 0:00:22]} 5. e3 {[%emt 0:00:31]} O-O {[%emt 0:00:34]} 6. Be2 {[%emt 0:02:01]} b6 {[%emt 0:01:44]} 7. O-O {[%emt 0:00:57]} Bb7 {[%emt 0:00:17]} 8. Qc2 {[%emt 0:02:13]} Nbd7 {[%emt 0:01:17]} 9. b3 {[%emt 0:10:30]} c5 {[%emt 0:01:46]} 10. cxd5 {[%emt 0:08:49] The position is equal.} Nxd5 {[%emt 0:02:44]} 11. Nxd5 {[%emt 0:02:05]} Bxd5 {[%emt 0:01:06]} 12. Bb2 {[%emt 0:01:45]} Rc8 {[%emt 0:01:37]} 13. Qd1 {[%emt 0:05:15]} Qc7 {[%emt 0:03:16]} 14. Ba6 {[%emt 0:02:47]} Rcd8 {[%emt 0:07:23]} 15. Rc1 {[%emt 0:03:01]} Qb8 {[%emt 0:02:34]} 16. Bd3 {[%emt 0:03:58]} cxd4 {[%emt 0:11:56]} 17. Nxd4 {[%emt 0:03:41]} Bf6 {[%emt 0:06:28]} 18. Qe2 {[%emt 0:07:02]} Qa8 {[%emt 0:10:32]} 19. Qh5 {[%emt 0:11:29][%csl Gd3][%cal Rh5h7]} g6 {[%emt 0:02:37]} 20. Qh3 {[%emt 0:00:10]} Rc8 {[%emt 0:02:39]} 21. f4 {[%emt 0:08:37]} (21. f3 $11) 21... Rxc1 {[%emt 0:03:41]} 22. Rxc1 {[%emt 0:00:11]} Rc8 {[%emt 0:02:32] Repels Rc7} 23. Rxc8+ {[%emt 0:05:43]} Qxc8 {[%emt 0:00:05]} 24. Qg4 {[%emt 0:01:46]} Nc5 {[%emt 0:02:52]} 25. Bb1 {[%emt 0:02:02]} Ne4 {[%emt 0:02:46]} 26. Qe2 {[%emt 0:01:41]} Qc5 {[%emt 0:01:39]} (26... Nc3 $15 27. Qc2 Bxd4 28. exd4 Be4 29. Qxc3 Qxc3 30. Bxc3 Bxb1) 27. Bxe4 $1 $14 {[%emt 0:03:03]} Bxe4 {[%emt 0:01:14]} 28. Qd2 {[%emt 0:00:14]} ({Better is} 28. Nxe6 $1 $14 Qf5 29. Bxf6 Qxe6 30. Be5) 28... Qd5 $15 {[%emt 0:02:54]} 29. Bc3 {[%emt 0:00:04][%cal Od4b5]} e5 {[%emt 0:03:36]} 30. Ne2 {[%emt 0:02:25]} Bxg2 {[%emt 0:04:48] This pair of bishops is nice.} 31. Qxd5 {[%emt 0:00:56]} Bxd5 {[%emt 0:00:04]} 32. fxe5 {[%emt 0:01:00][%mdl 4096] Endgame. KBB-KBN} Be7 {[%emt 0:03:20]} 33. Nd4 {[%emt 0:00:42]} h5 {[%emt 0:01:31]} 34. Nb5 {[%emt 0:01:04]} a6 {[%emt 0:01:34]} 35. Nd6 {[%emt 0:01:15]} Kf8 {[%emt 0:02:12]} 36. Bd4 {[%emt 0:00:30]} Bd8 {[%emt 0:01:07]} 37. Kf2 {[%emt 0:01:25]} b5 {[%emt 0:01:26]} 38. Bc5 {[%emt 0:00:31][%cal Oe3e4]} Kg7 {[%emt 0:00:58]} 39. Bd4 {[%emt 0:00:37]} Kh6 {[%emt 0:00:34]} 40. e4 {[%emt 0:00:26]} Be6 {[%emt 0:00:15]} 41. Be3+ {[%emt 0:01:25]} Kg7 {[%emt 0:01:01]} (41... g5 $17 42. Nb7 Bc7) 42. Bd4 {[%emt 0:00:12]} g5 {[%emt 0:01:03]} 43. Nb7 {[%emt 0:00:37]} Be7 {[%emt 0:01:17]} 44. Nc5 {[%emt 0:00:05] [#]} Bc8 $1 {[%emt 0:01:32]} 45. b4 {[%emt 0:02:03]} (45. Nd3 $142) 45... Kg6 $17 {[%emt 0:00:46]} 46. Be3 {[%emt 0:00:48]} g4 {[%emt 0:02:05]} 47. Nd3 {[%emt 0:00:02]} h4 {[%emt 0:01:18]} 48. Nf4+ {[%emt 0:00:08]} Kg7 {[%emt 0:01:21]} 49. Nd5 {[%emt 0:00:02]} Bd8 {[%emt 0:00:34]} 50. a3 {[%emt 0:00:29]} Be6 {[%emt 0:00:34] Strongly threatening ...Bxd5.} 51. Nf4 {[%emt 0:00:25]} Kg8 {[%emt 0:01:36]} 52. Nh5 {[%emt 0:00:42]} Kh7 {[%emt 0:00:30]} 53. Nf6+ {[%emt 0:01:00]} Kg6 {[%emt 0:00:27]} 54. Bd4 {[%emt 0:00:11]} Bc8 {[%emt 0:00:59]} 55. Ne8 $2 {[%emt 0:00:15] [#] This costs White the game.} ({White should try} 55. Ke3 $15) 55... Bg5 $1 $19 {[%emt 0:00:34]} 56. Bb2 $2 {[%emt 0:02:09]} (56. Nc7) 56... Bf4 {[%emt 0:00:32]} 57. Kg2 {[%emt 0:00:02]} h3+ {[%emt 0:00:35]} 58. Kg1 {[%emt 0:00:14]} Be3+ {[%emt 0:00:23]} 59. Kf1 {[%emt 0:00:22] [#]} g3 $1 {[%emt 0:00:40][%mdl 512] Black mates.} 60. hxg3 {[%emt 0:00:16]} Bg4 {[%emt 0:00:38]} 61. Bc1 {[%emt 0:01:52] [#]} Bf3 $1 {[%emt 0:00:56]} 62. Bxe3 {[%emt 0:00:28]} h2 $1 {[%emt 0:00:05]} (62... Bxe4 $2 {loses.} 63. Kg1 $18) 63. Ke1 {[%emt 0:00:32]} h1=Q+ {[%emt 0:00:08] Weighted Error Value: White=0.40/Black=0.14 (very precise) .  Loses game:     	White=1     	---        Mistake:       	White=4     	Black=2      Inaccurate:     	White=5     	Black=3      OK:         	White=18    	Black=17     Best:        	White=2     	Black=3      Strong:       	White=1     	Black=2} 0-1

[Event "SixDays Budapest IM-A January 2024"]
[Site "Budapest"]
[Date "2024.01.29"]
[Round "5.4"]
[White "Polyik, Peter"]
[Black "Hacker, Jonas"]
[Result "1/2-1/2"]
[ECO "A13"]
[WhiteElo "2289"]
[BlackElo "2420"]
[Annotator "TA"]
[PlyCount "38"]
[EventDate "2024.01.26"]
[EventType "tourn"]
[EventCountry "HUN"]
[SourceTitle "playchess.com"]
[Source "ChessBase"]
[SourceQuality "1"]
[TimeControl "5400+30"]

{[%evp 9,38,4,0,0,10,5,4,8,5,0,6,6,6,5,4,7,17,19,8,10,12,0,29,24,37,20,37,16,26,-39,0]} 1. c4 {[%emt 0:00:03]} e6 {[%emt 0:01:05]} 2. g3 {[%emt 0:00:07]} d5 {[%emt 0:00:40]} 3. Nf3 {[%emt 0:00:34]} Nf6 {[%emt 0:00:42]} 4. Bg2 {[%emt 0:00:07]} dxc4 {[%emt 0:01:10]} 5. Qa4+ {[%emt 0:00:07]} Bd7 {[%emt 0:01:28]} 6. Qxc4 {[%emt 0:00:11]} c5 {[%emt 0:00:39]} 7. Ne5 {[%emt 0:00:07]} Qc8 {[%emt 0:01:08]} 8. O-O {[%emt 0:03:00] The position is equal.} Nc6 {[%emt 0:02:39]} 9. Nxd7 {[%emt 0:00:09]} (9. d4 {with more complications.} cxd4 10. Bxc6 Bxc6 11. Rd1) 9... Qxd7 {[%emt 0:01:14]} 10. Nc3 {[%emt 0:00:11]} Rc8 {[%emt 0:02:42]} 11. d3 {[%emt 0:03:09]} Nd4 {[%emt 0:05:17] [#] ...b5 would now be deadly.} 12. a4 {[%emt 0:02:20][%cal Ba2a4,Ba4a5][%mdl 32]} Be7 {[%emt 0:01:29]} 13. a5 {[%emt 0:05:12]} O-O {[%emt 0:09:58]} 14. Qa4 {[%emt 0:22:45]} Rfd8 {[%emt 0:08:46]} 15. Rd1 {[%emt 0:14:01]} b5 {[%emt 0:16:20]} 16. axb6 {[%emt 0:00:16]} axb6 {[%emt 0:00:13]} 17. Qxd7 {[%emt 0:11:34]} Rxd7 {[%emt 0:03:34]} 18. Kf1 {[%emt 0:01:07]} b5 {[%emt 0:05:14]} 19. Bg5 {[%emt 0:04:49]} ({White should play} 19. Ra6 $11) 19... h6 {[%emt 0:04:21] Weighted Error Value: White=0.11 (very precise) /Black=0.05 (flawless) .  Mistake:       	White=1     	---        Inaccurate:     	---       	Black=2      OK:         	White=5     	Black=6      Best:        	White=1     	---} 1/2-1/2

[Event "SixDays Budapest IM-A January 2024"]
[Site "Budapest"]
[Date "2024.01.29"]
[Round "5.5"]
[White "Lim, Zhuo Ren"]
[Black "Szalay-Ocsak, Bank"]
[Result "1/2-1/2"]
[ECO "A37"]
[WhiteElo "2218"]
[BlackElo "2165"]
[Annotator "TA"]
[PlyCount "44"]
[EventDate "2024.01.26"]
[EventType "tourn"]
[EventCountry "HUN"]
[SourceTitle "playchess.com"]
[Source "ChessBase"]
[SourceQuality "1"]
[TimeControl "5400+30"]

{[%evp 21,44,0,0,-43,0,0,0,0,0,-33,-33,-33,-32,-52,-60,-62,-59,-54,-52,-90,-82,-81,-37,-44,0]} 1. Nf3 {[%emt 0:06:07]} c5 {[%emt 0:00:31]} 2. c4 {[%emt 0:00:14]} Nc6 {[%emt 0:00:07]} 3. Nc3 {[%emt 0:00:13]} g6 {[%emt 0:00:51]} 4. g3 {[%emt 0:00:07]} Bg7 {[%emt 0:00:09]} 5. Bg2 {[%emt 0:00:11]} d6 {[%emt 0:00:30]} 6. O-O {[%emt 0:00:16]} e6 {[%emt 0:00:30]} 7. a3 {[%emt 0:00:40]} Nge7 {[%emt 0:00:43]} 8. Rb1 {[%emt 0:00:38]} b6 {[%emt 0:07:23]} 9. d3 {[%emt 0:01:15]} Bb7 {[%emt 0:00:41]} 10. Bd2 {[%emt 0:00:22]} O-O {[%emt 0:00:36]} 11. b4 {[%emt 0:00:24]} Qd7 {[%emt 0:00:57]} 12. Qc1 {[%emt 0:03:18]} Nf5 {[%emt 0:05:13]} 13. e3 {[%emt 0:04:44]} Rac8 {[%emt 0:05:53]} 14. Rd1 {[%emt 0:01:39] The position is equal.} Rfd8 {[%emt 0:00:21]} 15. bxc5 {[%emt 0:10:20]} dxc5 {[%emt 0:04:05]} 16. Be1 {[%emt 0:00:17]} Qe7 {[%emt 0:04:32]} 17. Ne4 {[%emt 0:05:00]} Nd6 {[%emt 0:02:38]} 18. Nxd6 {[%emt 0:00:52]} Rxd6 {[%emt 0:00:36]} 19. Bc3 {[%emt 0:00:18]} Rcd8 {[%emt 0:11:57]} 20. Qb2 {[%emt 0:01:47]} Bxc3 {[%emt 0:00:59]} (20... Rxd3 $2 {loses.} 21. Rxd3 Rxd3 22. Bxg7 $18) 21. Qxc3 {[%emt 0:00:03]} Qd7 {[%emt 0:01:10]} 22. Ne1 {[%emt 0:01:42]} Qe7 {[%emt 0:09:32] Weighted Error Value: White=0.13 (very precise) /Black=0.09 (flawless) .  Inaccurate:     	White=2     	Black=3      OK:         	White=6     	Black=5      Best:        	---       	Black=1} 1/2-1/2

[Event "SixDays Budapest IM-A January 2024"]
[Site "Budapest"]
[Date "2024.01.30"]
[Round "6.1"]
[White "Kuru, Atilla"]
[Black "Szalay-Ocsak, Bank"]
[Result "1-0"]
[ECO "B23"]
[WhiteElo "2220"]
[BlackElo "2165"]
[Annotator "TA"]
[PlyCount "61"]
[EventDate "2024.01.26"]
[EventType "tourn"]
[EventCountry "HUN"]
[SourceTitle "playchess.com"]
[Source "ChessBase"]
[SourceQuality "1"]
[TimeControl "5400+30"]

{[%evp 9,61,0,0,-10,38,33,31,38,35,44,43,32,53,-27,0,-3,-37,-27,6,5,92,58,49,45,61,13,32,0,0,0,0,-102,-108,-172,105,110,166,158,355,368,392,371,396,371,357,289,565,527,670,570,1014,995,1017,981]} 1. e4 {[%emt 0:08:36]} c5 {[%emt 0:00:28]} 2. Nc3 {[%emt 0:00:17]} d6 {[%emt 0:00:07]} 3. d4 {[%emt 0:00:03]} cxd4 {[%emt 0:00:36]} 4. Qxd4 {[%emt 0:00:06]} Nc6 {[%emt 0:00:37]} 5. Qd2 {[%emt 0:00:05]} Nf6 {[%emt 0:02:22]} 6. b3 {[%emt 0:00:22]} g6 {[%emt 0:03:42]} (6... e6 $11) 7. Bb2 $14 {[%emt 0:00:06]} Bg7 {[%emt 0:00:14][%cal Of6e4]} 8. O-O-O {[%emt 0:00:08] White is slightly better.} O-O {[%emt 0:05:34]} 9. f3 {[%emt 0:01:51]} Be6 {[%emt 0:02:20]} 10. g4 {[%emt 0:00:11]} a5 {[%emt 0:04:38]} 11. a4 {[%emt 0:02:52]} (11. Kb1 $14) 11... Nb4 {[%emt 0:02:00]} 12. Nge2 {[%emt 0:02:28]} Rc8 {[%emt 0:08:58][%cal Ob7b5] Strongly threatening ...b5!} 13. Kb1 $1 {[%emt 0:04:43]} Rc5 {[%emt 0:12:20]} 14. Nd4 {[%emt 0:03:27]} Qc8 {[%emt 0:01:32]} (14... Qb6 $1 $11 {keeps the balance.}) 15. h4 {[%emt 0:03:00][%cal Oh4h5]} h5 {[%emt 0:06:56]} 16. g5 $36 {[%emt 0:01:19][%mdl 2048] White is pushing.} Nd7 {[%emt 0:06:01]} 17. f4 {[%emt 0:02:33] Dodges Ne5} (17. Rc1 $14) 17... Bg4 $11 {[%emt 0:00:58][%cal Og7d4] [#] Threatens to win with ...Bxd4!} 18. Rc1 {[%emt 0:02:44]} e5 {[%emt 0:02:40]} 19. Ndb5 {[%emt 0:00:25]} exf4 {[%emt 0:03:08]} 20. Nxd6 {[%emt 0:07:51]} (20. Nd5 $1 $11 Nxd5 21. Bxg7 Kxg7 22. exd5) 20... Qb8 $17 {[%emt 0:00:39] Hoping for ...Bxc3.} 21. Ncb5 {[%emt 0:00:36]} (21. Nc4 $17) 21... Ne5 $2 {[%emt 0:03:17]} (21... Bxb2 $19 22. Kxb2 Ne5 (22... f3 23. Rh2 $15)) 22. Qxf4 $16 {[%emt 0:06:36] White is more active.} Be6 {[%emt 0:16:03]} (22... b6 $16) 23. Bd4 {[%emt 0:05:03]} Rfc8 {[%emt 0:00:07] Black cannot hold the game after this.} (23... b6 $16 24. Be2 Rd8) 24. Nxc8 {[%emt 0:02:26]} Qxc8 {[%emt 0:02:30]} 25. Rh2 {[%emt 0:11:41]} Qc6 {[%emt 0:05:25]} 26. Bxc5 {[%emt 0:03:19]} Qxc5 {[%emt 0:00:02]} 27. Bh3 {[%emt 0:00:11] [#] Black must now prevent Bxe6.} Bxh3 {[%emt 0:10:09]} (27... Bc4 28. Qf2 (28. bxc4 Qxc4 29. Rd1 Qa2+ 30. Kc1 Nc4 $18) 28... Qc6) 28. Rxh3 $18 {[%emt 0:00:31] White is clearly winning.} Nec6 {[%emt 0:00:27]} 29. c3 {[%emt 0:03:01]} Be5 {[%emt 0:00:35]} 30. Qd2 {[%emt 0:01:16]} Na6 {[%emt 0:00:29]} 31. Rf1 {[%emt 0:00:24] Weighted Error Value: White=0.29 (precise) /Black=0.76.  Loses game:     	---       	Black=1      Missed win:     	---       	Black=1      Mistake:       	White=4     	Black=4      Inaccurate:     	White=1     	Black=2      OK:         	White=8     	Black=6      Best:        	---       	Black=3      Strong:       	White=1     	---} 1-0